Cogmind - Beta 16 @@@ ROGUE MODE // 2025.12.26 @ 15:01:30 Player: TheGamingJasper Result: Self-destructed Performance ------------- Evolutions (1) 500 Regions Visited (4) 800 Robots Destroyed (10) 50 Value Destroyed (215) 215 Prototype IDs (0) 0 Alien Tech Used (0) 0 Bonus (86) 86 TOTAL SCORE: 1651 Bonus ------- Follower Combat Kills 86 Cogmind --------- Core Integrity 368/400 Matter 300/300 Energy 158/160 System Corruption 0% Temperature Cool (4) Movement Flying (31) Location -9/Storage Parts ------- > --- POWER (1) -------- Light Nuclear Core > --- PROPULSION (4) --- Flight Unit Flight Unit Flight Unit Flight Unit > --- UTILITY (2) ------ Small Storage Unit Visual Processing Unit > --- WEAPON (2) ------- Assault Rifle > --- INVENTORY (8) ---- Ion Engine Heat Sink Seismic Detector Peak State ------------ > --- POWER ------------ Light Nuclear Core > --- PROPULSION ------- Flight Unit Flight Unit Flight Unit Flight Unit > --- UTILITY ---------- Small Storage Unit Visual Processing Unit > --- WEAPON ----------- Light Assault Rifle > --- INVENTORY -------- Ion Engine Heat Sink Seismic Detector Assault Rifle [Rating: 11] Favorites ----------- Power Ion Engine Engine Ion Engine Power Core Light Nuclear Core Propulsion Aluminum Leg Leg Aluminum Leg Flight Unit Flight Unit Utility Small Storage Unit Storage Small Storage Unit Processor Visual Processing Unit Weapon Light Assault Rifle Ballistic Gun Light Assault Rifle Build | -11 -10 -10 -9 -9 ------- Run | Yrd Mat Min Mat Sto Slots Evolved 2 | . . . 2 . Power . | . . . . . Propulsion 2 | . . . 2 . Utility . | . . . . . Weapon . | . . . . . Parts Attached 17 | 6 1 2 8 . Power 2 | 1 . . 1 . Engine 1 | 1 . . . . Core 1 | . . . 1 . Reactor . | . . . . . Propulsion 10 | 2 . 2 6 . Treads . | . . . . . Leg 4 | 2 . 2 . . Wheel . | . . . . . Hover . | . . . . . Flight 6 | . . . 6 . Utility 2 | 1 1 . . . Device . | . . . . . Storage 1 | 1 . . . . Processor 1 | . 1 . . . Hackware . | . . . . . Protection . | . . . . . Artifact . | . . . . . Weapon 3 | 2 . . 1 . Energy Gun . | . . . . . Energy Cannon . | . . . . . Ballistic Gun 3 | 2 . . 1 . Ballistic Cannon . | . . . . . Launcher . | . . . . . Special Weapon . | . . . . . Impact Weapon . | . . . . . Slashing Weapon . | . . . . . Piercing Weapon . | . . . . . Special Melee Weapon . | . . . . . Unidentified Prototypes . | . . . . . Parts Lost 6 | . . 3 3 . Power 1 | . . 1 . . Propulsion 3 | . . 1 2 . Utility . | . . . . . Weapon 2 | . . 1 1 . Highest Loss Streak 3 | . . 3 3 . To Critical Strikes . | . . . . . Average Backups 5 | 1 4 7 6 3 Power 1 | . 1 2 1 1 Propulsion 1 | . 1 2 1 . Utility 1 | . . 2 2 2 Weapon . | . 1 1 . . Tool/Special . | . . . . . Unused Backups 4 | . . . 1 3 Power 2 | . . . 1 1 Propulsion . | . . . . . Utility 2 | . . . . 2 Weapon . | . . . . . Tool/Special . | . . . . . Average Slot Usage (%) 87 | . 92 93 62 88 Engine 9 | . 14 11 . . Core 1 | . . . 5 11 Leg 24 | . 28 27 15 . Flight 2 | . . . 7 44 Storage 13 | . 14 14 11 11 Processor 10 | . 7 14 11 11 Ballistic Gun 23 | . 28 25 11 11 Peak Build Rating 11 | 6 8 8 11 11 Average Rating 7 | 3 7 7 7 11 On Entrance 6 | . 6 8 6 11 Avg Prop Armor Cover (%) . | . . . . . Naked Turns . | . . . . . Heaviest Build 13 | 13 13 13 12 12 Greatest Support 20 | 20 20 20 20 16 Greatest Overweight (x) 1 | . . . 1 . Average Overweight (x) . | . . . . . Largest Inventory Capacity 8 | 8 8 8 8 8 Average Capacity 7 | 7 8 8 8 8 Most Carried 8 | 5 8 8 8 3 Average Carried 6 | 2 4 7 6 3 Final Capacity 8 | 8 8 8 8 8 Final Carried 8 | 2 8 7 3 3 Class Distribution -------------------- 100% | Mutant Dominant Class ---------------- Mutant | -10/Materials Mutant | -10/Mines Mutant | -9/Materials Mutant | -9/Storage Resources | -11 -10 -10 -9 -9 ----------- Run | Yrd Mat Min Mat Sto Matter Collected 448 | 197 114 49 88 . Remotely . | . . . . . Salvage Created 272 | . 160 34 78 . Parts 20 | . 12 2 6 . Haulers Intercepted . | . . . . . Recyclers Shooed . | . . . . . Parts Field Recycled . | . . . . . Retrieved Matter . | . . . . . Parts Self-Destructed . | . . . . . Prevented . | . . . . . Parts Restored . | . . . . . Kills | -11 -10 -10 -9 -9 ------- Run | Yrd Mat Min Mat Sto Combat Hostiles Destroyed 9 | . 5 1 3 . Guns 9 | . 5 1 3 . Classes Destroyed 4 | . 3 . 1 . Watcher 1 | . 1 . . . Swarmer 5 | . 3 . 2 . Grunt 3 | . 2 1 . . Duelist 1 | . . . 1 . Best Kill Streak 2 | . 2 1 2 . Combat Bots Only 2 | . 2 1 2 . Max Kills in Single Turn 1 | . 1 1 1 . Gunslinging . | . . . . . Exploded . | . . . . . Melee . | . . . . . Uniques/NPCs Destroyed . | . . . . . Combat | -11 -10 -10 -9 -9 -------- Run | Yrd Mat Min Mat Sto Hostile Shots Fired 58 | . 19 23 16 . Missed 23 | . 7 8 8 . Hits 35 | . 12 15 8 . Melee 3 | . . . 3 . Projectile 32 | . 12 15 5 . AOE 4 | . . 4 . . Critical Strikes 3 | . 1 . 2 . Damage Taken 574 | . 95 327 152 . Core 84 | . 13 39 32 . Absorbed by Shields . | . . . . . Core Remaining (%) 89 | 100 . 79 . . Volleys Fired 31 | . 13 7 11 . Largest 2 | . 2 2 1 . Hottest 40 | . 40 40 20 . Shots Fired 51 | . 26 14 11 . Gun 51 | . 26 14 11 . Cannon . | . . . . . Launcher . | . . . . . Special . | . . . . . Kinetic 51 | . 26 14 11 . Thermal . | . . . . . Explosive . | . . . . . Electromagnetic . | . . . . . Robot Hit Streak 6 | . 5 6 3 . Robot Miss Streak 2 | . 2 2 1 . Penetration Max . | . . . . . Secondary Targets 1 | . . 1 . . Max Gunslinging Chain 1 | . . 1 . . Shots Hit Robots 32 | . 15 10 7 . Core Hits 17 | . 10 3 4 . Critical Kills 1 | . 1 . . . Critical Parts Destroyed . | . . . . . Critical Strikes 1 | . 1 . . . Destroy 1 | . 1 . . . Melee Attacks . | . . . . . Impact . | . . . . . Slashing . | . . . . . Piercing . | . . . . . Sneak Attacks . | . . . . . Combat Hostiles . | . . . . . Follow-up Attacks . | . . . . . Damage Inflicted 340 | . 153 125 62 . Guns 340 | . 153 125 62 . Cannons . | . . . . . Explosions . | . . . . . Melee . | . . . . . Ramming . | . . . . . Kinetic 340 | . 153 125 62 . Thermal . | . . . . . Explosive . | . . . . . Electromagnetic . | . . . . . Impact . | . . . . . Slashing . | . . . . . Piercing . | . . . . . Highest Corruption . | . . . . . Average Corruption . | . . . . . Corruption Purged . | . . . . . Corruption Blocked . | . . . . . Overload Shots . | . . . . . Overflow Damage . | . . . . . Projectiles . | . . . . . Explosions . | . . . . . Melee . | . . . . . Knockbacks . | . . . . . Impact . | . . . . . Kinetic . | . . . . . Secondary . | . . . . . Self-Inflicted Damage . | . . . . . Shots . | . . . . . Rammed . | . . . . . Targets Rammed . | . . . . . Kicked . | . . . . . Crushed . | . . . . . Highest Temperature 18 | . 6 18 4 . Average Temperature 8 | . 6 10 2 . Received Heat Transfer 108 | . 6 87 15 . Siege Activations . | . . . . . Martial Activations . | . . . . . Shielding Activations . | . . . . . Robots Disrupted . | . . . . . Combat Hostiles . | . . . . . Robots Corrupted . | . . . . . Combat Hostiles . | . . . . . Parts Fried . | . . . . . Impact Corruptions . | . . . . . Robots Melted . | . . . . . Combat Hostiles . | . . . . . Parts Melted . | . . . . . Heat Transferred . | . . . . . Parts Sabotaged . | . . . . . Parts Stolen . | . . . . . Parts Stripped . | . . . . . Power Chain Reactions . | . . . . . Alert | -11 -10 -10 -9 -9 ------- Run | Yrd Mat Min Mat Sto Maximum Alert Level . | . . . . . Low Security (%) 100 | 100 100 100 100 100 Level 1 . | . . . . . Level 2 . | . . . . . Level 3 . | . . . . . Level 4 . | . . . . . Level 5 . | . . . . . High Security . | . . . . . Max Security . | . . . . . Peak Influence 199 | . 77 34 199 70 Initial 70 | . . 14 . 70 Average 28 | . 36 3 83 70 Influence Increases 458 | . 127 52 279 . Destroy 0b10 Robot/C 260 | . 100 40 120 . Destroy 0b10 Robot/NC 5 | . 5 . . . Destroy Leader 62 | . 22 10 30 . Allied During Kill 11 | . . 2 9 . Lose Combat Pursuer 120 | . . . 120 . Influence Decreases 388 | . 90 89 110 99 Entered New Map 122 | . . 23 . 99 Time Decay 164 | . 90 34 40 . Lost Part 50 | . . 20 30 . Lost Ally 52 | . . 12 40 . Squads Dispatched 2 | . 1 . . 1 Investigation 1 | . . . . 1 Extermination . | . . . . . Reinforcement 1 | . 1 . . . Assault . | . . . . . Garrison . | . . . . . Intercept . | . . . . . Searches Triggered . | . . . . . Construction Impeded . | . . . . . Haulers Reinforced . | . . . . . Active Scanning Responses . | . . . . . Cargo Convoy Interrupts . | . . . . . Stealth | -11 -10 -10 -9 -9 --------- Run | Yrd Mat Min Mat Sto Distress Signals 3 | . 3 . . . Communications Jammed . | . . . . . Distress Signals . | . . . . . Times Spotted 23 | . 10 6 7 . Peak Tracking Total 8 | . 4 3 8 . Tactical Retreats 3 | . . . 3 . Traps | -11 -10 -10 -9 -9 ------- Run | Yrd Mat Min Mat Sto Traps Triggered . | . . . . . Indirectly . | . . . . . Trap Hack Attempts . | . . . . . Triggered . | . . . . . Disarmed . | . . . . . Reprogrammed . | . . . . . Reused . | . . . . . Traps Extracted . | . . . . . Installed . | . . . . . Triggered . | . . . . . Machines | -11 -10 -10 -9 -9 ---------- Run | Yrd Mat Min Mat Sto Machines Disabled . | . . . . . Max in Single Turn . | . . . . . Machines Repaired . | . . . . . Machines Dismantled . | . . . . . Machines Sabotaged . | . . . . . Overloaded Fab Kills . | . . . . . Hacking | -11 -10 -10 -9 -9 --------- Run | Yrd Mat Min Mat Sto Machines Accessed 3 | . . . 2 1 Terminals 3 | . . . 2 1 Fabricators . | . . . . . Repair Stations . | . . . . . Recycling Units . | . . . . . Scanalyzers . | . . . . . Garrison Access . | . . . . . Total Hacks 9 | . . . 7 2 Successful 1 | . . . 1 . Failed 8 | . . . 6 2 Catastrophic 3 | . . . 2 1 Database Lockouts . | . . . . . Manual 6 | . . . 6 . Terminals 9 | . . . 7 2 Fabricators . | . . . . . Repair Stations . | . . . . . Recycling Units . | . . . . . Scanalyzers . | . . . . . Garrison Access . | . . . . . Terminal Hacks 1 | . . . 1 . Record 1 | . . . 1 . Fabricator Hacks . | . . . . . Repair Station Hacks . | . . . . . Recycling Unit Hacks . | . . . . . Scanalyzer . | . . . . . Garrison Access Hacks . | . . . . . Unauthorized Hacks . | . . . . . Terminals . | . . . . . Fabricators . | . . . . . Repair Stations . | . . . . . Recycling Units . | . . . . . Scanalyzers . | . . . . . Garrison Access . | . . . . . Data Cores Recovered . | . . . . . Used . | . . . . . Hacking Detections 3 | . . . 2 1 Full Trace Events 1 | . . . . 1 Feedback Events . | . . . . . Feedback Blocked . | . . . . . Robot Schematics Acquired . | . . . . . Robots Built . | . . . . . Authchips . | . . . . . Time . | . . . . . Total Robot Build Rating . | . . . . . Part Schematics Acquired . | . . . . . Parts Built . | . . . . . Authchips . | . . . . . Time . | . . . . . Total Part Build Rating . | . . . . . Part Studies Acquired . | . . . . . Parts Repaired . | . . . . . Time . | . . . . . Parts Recycled . | . . . . . Recycled Matter . | . . . . . Retrieved Matter . | . . . . . Retrieved Components . | . . . . . Parts Scanalyzed . | . . . . . Part Schematics Acquired . | . . . . . Parts Damaged . | . . . . . Bothacking | -11 -10 -10 -9 -9 ------------ Run | Yrd Mat Min Mat Sto Used RIF Installer . | . . . . . Robots Hacked . | . . . . . Non-combat . | . . . . . Combat . | . . . . . Robot Hacks Applied . | . . . . . Relay Couplers Released . | . . . . . Fabnet Peak Effective % . | . . . . . Robots Rewired . | . . . . . Allies Hacked . | . . . . . Hacks Repelled . | . . . . . Allies | -11 -10 -10 -9 -9 -------- Run | Yrd Mat Min Mat Sto Total Allies 4 | . . 4 . . Largest Group 3 | . . 1 3 . Highest-Rated Group 40 | . . 31 40 . Highest-Rated Ally 31 | . . 31 16 . Total Orders . | . . . . . Ally Attacks 27 | . . 6 21 . Total Damage 303 | . . 105 198 . Kills 4 | . . 1 3 . Allies Corrupted . | . . . . . Allies Melted . | . . . . . Intel | -11 -10 -10 -9 -9 ------- Run | Yrd Mat Min Mat Sto Active Infowar (turns) 580 | . 131 315 132 2 Optics 580 | . 131 315 132 2 Robot Analysis Total . | . . . . . Derelict Logs Recovered . | . . . . . Drone Launches . | . . . . . Drone Recoveries . | . . . . . Exploration | -11 -10 -10 -9 -9 ------------- Run | Yrd Mat Min Mat Sto Turns Passed 762 | 58 255 315 132 2 Spaces Moved 559 | 47 169 244 94 5 Core 17 | 17 . . . . Treads . | . . . . . Legs 511 | 30 169 244 68 . Wheels . | . . . . . Hover . | . . . . . Flight 31 | . . . 26 5 Fastest Speed 31 | 50 120 120 31 31 Average Speed 113 | 94 120 120 98 31 Slowest Speed 120 | 120 120 120 120 31 Overloaded Moves . | . . . . . Propulsion Burnouts . | . . . . . Robots Hopped . | . . . . . Potential Cave-ins . | . . . . . Cave-ins Triggered . | . . . . . Exploration Rate (%) 21 | 3 34 54 13 3 Regions Visited 4 Branch Regions 2 Pre-discovered Areas 1 | . . 1 . . Known Exits Taken . | . . . . . Unknown Exits Taken 4 | 1 1 1 1 . Scrap Searched 1 | . . 1 . . Spaces Dug . | . . . . . Terrain Destroyed . | . . . . . Melee . | . . . . . Projectile . | . . . . . AOE . | . . . . . Terrain Rammed . | . . . . . Walls Destroyed . | . . . . . Machines Disabled . | . . . . . Actions | -11 -10 -10 -9 -9 --------- Run | Yrd Mat Min Mat Sto Total 642 | 60 198 254 125 5 Wait 15 | . 9 1 5 . Move 555 | 46 168 243 93 5 Hop . | . . . . . Pick Up 20 | 8 7 . 5 . Fast Attach . | . . . . . Attach 16 | 6 1 1 8 . Detach . | . . . . . Swap 1 | . . 1 . . Drop 4 | . . 1 3 . Fire 31 | . 13 7 11 . Melee . | . . . . . Ram . | . . . . . Kick . | . . . . . Crush . | . . . . . Escape Stasis . | . . . . . Rewire . | . . . . . Trap . | . . . . . Miscellaneous . | . . . . . Route ------- -11/Scrapyard -10/Materials (discovered 2 exits: [*Min x2]) -10/Mines -9/Materials -9/Storage History --------- Turn | Location | Event 3 | -11/Scrapyard | Discovered new exit (range 15) 59 | -11/Scrapyard | Entered Materials 99 | -10/Materials | Discovered new exit (range 5) 158 | -10/Materials | Discovered new exit (range 10) 314 | -10/Materials | Entered Mines 318 | -10/Mines | Build established: Mutant 333 | -10/Mines | Escorted by a lone wolf Derelict 353 | -10/Mines | Learned location of Storage (-9) 549 | -10/Mines | Assembled infested the area 554 | -10/Mines | Assisted by a Guerilla fighting off Assembled 598 | -10/Mines | Lost 3 parts (1p1n1w) 615 | -10/Mines | Discovered new exit (range 9) 625 | -10/Mines | Assisted by bots powering up and referring to "LRC-V3" 629 | -10/Mines | Entered Materials 629 | -9/Materials | Accompanied by 3 allies 629 | -9/Materials | Evolved 2 slots: Propulsion x2 760 | -9/Materials | Discovered new exit (range 4) 761 | -9/Materials | Entered Storage 763 | -9/Storage | Self-destructed Last Messages --------------- S-10 Pest destroyed. Flight Unit destroyed. Lgt. Assault Rifle destroyed. Flight Unit destroyed. L-31 Rogue destroyed. Acquired Flight Unit. Trooper 1a destroyed. Acquired 44 matter. Acquired 24 matter. R-06 Scavenger collects Imp. Heat Sink. R-06 Scavenger collects Lgt. Ion Engine. R-06 Scavenger collects Aluminum Leg. EXIT=FOUND K-01 Serf collects debris. LOCATION=UNKNOWN GOAL=ESCAPE Connecting with Door Terminal... Current location identified: Storage ALERT: Suspicious activity at Terminal S006. Dispatching Investigation squad. Map ----- +----------------------------------------------------+ | | | | | | | | | | | | | | | | | | | | | | | | | | | | | | | | | | | | | ???????????????????????????????????????????? | | ???????????????????????????????????????????? | | ???????????????????????????????????????????? | | ???????????????????????????????????????????? | | ???????????????????????????????????????????? | | ???????????????????????##"""#??????????????? | | ???????????????###?????#T ???????????????? | | ????????????#### ####@######???????????? | | ???????? #???????????? | | ???????? " #???????????? | | ?????????? #???????????? | | ???????????##### ####+######???????????? | | ???????????????#####???????????????????????? | | ???????????????????????????????????????????? | | ???????????????????????????????????????????? | | ???????????????????????????????????????????? | | ???????????????????????????????????????????? | | ???????????????????????????????????????????? | | ???????????????????????????????????????????? | | ???????????????????????????????????????????? | | ???????????????????????????????????????????? | | ???????????????????????????????????????????? | | ???????????????????????????????????????????? | | ???????????????????????????????????????????? | | ???????????????????????????????????????????? | | ???????????????????????????????????????????? | | ???????????????????????????????????????????? | | ???????????????????????????????????????????? | | ???????????????????????????????????????????? | | ???????????????????????????????????????????? | | ???????????????????????????????????????????? | | ???????????????????????????????????????????? | +----------------------------------------------------+ Best States ------------- Heat Dissipation 28 Energy Generation 14 Energy Capacity 250 Matter Stores 300 Matter Capacity 300 Sight Range 18 Terrain Scan Density 10 Evasion (%) 63 Item Schematics ----------------- None Robot Schematics ------------------ None Fabricated ------------ Nothing Repaired ---------- Nothing Studied --------- None Alien Tech Used ----------------- None Achievements -------------- None Challenges ------------ None Game ------ Seed ScrapoidHardcellWeb Manual? 0 Play Time 00:09:14 Cumulative 44.4 hours Start 2025.12.26 @ 14:47:50 End 2025.12.26 @ 15:01:30 Sessions 1 Manual Loads 0 Difficulty Rogue Special Mode None Game No. 76 Rogue 75 Adventurer 1 Explorer 0 Win Type - Total 0 Types 0/0/0/0/0/0/0/0/0/0 Lore% 12 Gallery% 33 Achievement% 22 Wizard Run 0 Options --------- Layout 1 ASCII 0 Keyboard 0 Movement Arrows Keybinds 0 Fullscreen 1 Font 24/Smallcaps Map View 50x35 Zoom Use 0% Tactical HUD 0 Map Filters NONE Filters NONE Steam 1 RUN: c717c238-8d29-4d8a-bce9-3abdeb1f597c